bitfinex/quotes_BTCUSD_20220207
["timestamp","ask_amount","ask_price","bid_price","bid_amount"]
[1644248694223,0.057294,43676.0,43673.0,0.22894004]
[1644248694423,0.057294,43676.0,43675.0,0.05]
[1644248694623,0.1,43682.0,43675.0,0.05]
[1644248694824,0.1,43682.0,43673.0,0.22894004]
[1644248694825,0.00051535,43677.0,43676.0,0.05]
[1644248695023,0.00051535,43677.0,43673.0,0.22894004]
[1644248695676,9.776e-05,43682.0,43673.0,0.22894004]
[1644248695876,0.00051535,43677.0,43673.0,0.22894004]
[1644248696378,0.00051535,43677.0,43673.0,0.24854307]
[1644248696776,0.057285,43681.0,43673.0,0.24854307]
[1644248697178,0.00051535,43677.0,43673.0,0.24854307]
[1644248697377,0.00051535,43677.0,43676.0,0.05]
[1644248697577,0.00051535,43677.0,43674.0,0.08656868]
[1644248697779,0.00051535,43677.0,43673.0,0.03985462]
[1644248697981,0.00586884,43677.0,43673.0,0.02025159]
[1644248698382,0.8,43676.0,43660.0,0.26041948]
[1644248698577,0.00586884,43677.0,43664.0,0.05]
[1644248698779,0.22048484,43676.0,43670.0,0.2252505]
[1644248699084,0.22048484,43676.0,43670.0,0.2752505]
[1644248699323,0.10586884,43676.0,43670.0,0.2752505]
[1644248699517,0.10586884,43676.0,43670.0,0.2252505]
[1644248699716,0.10568365,43676.0,43671.0,0.06885688]
[1644248699918,0.0056127,43676.0,43671.0,0.06885688]
[1644248700117,0.001,43678.0,43671.0,0.06885688]
[1644248700118,0.001,43678.0,43674.0,0.45]
[1644248700319,0.001,43678.0,43677.0,0.25672244]
[1644248700617,0.0215936,43683.0,43677.0,0.25672244]
[1644248701019,0.25491877,43682.0,43677.0,0.25672244]
[1644248701219,0.25491877,43682.0,43672.0,0.3]
[1644248701220,0.31220377,43682.0,43672.0,0.3]
[1644248701519,0.31220377,43682.0,43669.0,0.3]
[1644248701722,0.157285,43682.0,43669.0,0.3]
[1644248701918,0.157285,43682.0,43670.0,0.02107555]
[1644248701919,0.05,43681.0,43670.0,0.02107555]
[1644248702119,1.97892445,43670.0,43669.0,0.3]
[1644248702318,1.97892445,43670.0,43669.0,0.32908188]
[1644248702721,1.97892445,43670.0,43669.0,0.89871964]
[1644248702921,1.97892445,43670.0,43669.0,0.85846805]
[1644248704769,1.97892445,43670.0,43669.0,0.80846805]
[1644248705069,1.97892445,43670.0,43669.0,0.80834019]
[1644248705670,1.7080444,43670.0,43669.0,0.80834019]
[1644248705870,1.61673785,43670.0,43669.0,0.85834019]
[1644248706071,0.00095106,43675.0,43670.0,0.8]
[1644248706271,0.00015422,43684.0,43675.0,0.8]
[1644248706472,0.00015422,43684.0,43683.0,0.09025159]
[1644248706671,0.00061672,43695.0,43683.0,0.53646323]
[1644248706926,0.27515481,43699.0,43688.0,0.05]
[1644248706927,0.1062873,43699.0,43688.0,0.05]
[1644248707122,0.02,43699.0,43688.0,0.05]
[1644248707323,0.02,43699.0,43689.0,0.8]
[1644248707324,0.00203795,43695.0,43689.0,0.8]
[1644248707522,0.00203795,43695.0,43692.0,0.8]
[1644248707721,0.00203795,43695.0,43694.0,0.08525159]
[1644248708120,0.00203795,43695.0,43693.0,0.45764017]
[1644248708520,0.02,43699.0,43693.0,0.45764017]
[1644248708521,0.00050965,43696.0,43693.0,0.45764017]
[1644248708721,0.00050965,43696.0,43693.0,0.25885218]
[1644248708924,0.00050965,43696.0,43695.0,0.08525159]
[1644248709224,0.02,43699.0,43695.0,0.40167491]
[1644248709428,0.02,43699.0,43698.0,0.08525159]
[1644248709722,0.0001,43700.0,43699.0,0.8]
[1644248709923,0.0001,43700.0,43699.0,1.11565895]
[1644248710122,0.0001,43700.0,43699.0,1.07065895]
[1644248710323,0.0001,43700.0,43699.0,1.11091054]
[1644248710766,0.0001,43700.0,43699.0,1.41091054]
[1644248711464,0.0001,43700.0,43699.0,0.0422]
[1644248711667,0.0051,43700.0,43699.0,0.0422]
[1644248711866,0.0051,43700.0,43696.0,0.01890153]
[1644248712070,0.005,43697.0,43695.0,0.1706372]
[1644248712265,0.005,43697.0,43695.0,0.16815139]
[1644248713968,0.00042642,43698.0,43695.0,0.16815139]
[1644248714168,0.005,43702.0,43696.0,0.65]
[1644248714420,0.005,43702.0,43695.0,0.16815139]
[1644248714421,0.00042642,43698.0,43697.0,0.17422256]
[1644248714623,0.00042642,43698.0,43697.0,0.34237395]
[1644248715420,0.47950937,43702.0,43697.0,0.34237395]
[1644248716119,0.47450937,43702.0,43697.0,0.34237395]
[1644248716318,0.005,43699.0,43697.0,0.34237395]
[1644248716720,0.005,43700.0,43699.0,0.04025159]
[1644248717122,0.1,43706.0,43699.0,0.04025159]
[1644248717320,0.1,43706.0,43700.0,0.27425864]
[1644248717520,0.1,43706.0,43697.0,0.34237395]
[1644248717920,0.1,43706.0,43697.0,0.36322314]
[1644248718174,0.0065,43708.0,43697.0,0.36322314]
[1644248718175,0.00050858,43704.0,43700.0,0.04025159]
[1644248718371,0.00050858,43704.0,43697.0,0.36322314]
[1644248718771,0.00050858,43704.0,43699.0,0.23657249]
[1644248719073,0.005,43704.0,43699.0,0.23657249]
[1644248719272,0.00550858,43704.0,43699.0,0.23657249]
[1644248719773,0.00550858,43704.0,43702.0,0.17422256]
[1644248719971,0.00550858,43704.0,43702.0,0.34237395]
[1644248720372,0.005,43704.0,43702.0,0.34237395]
[1644248720572,0.00050858,43705.0,43703.0,0.045]
[1644248720773,0.00050858,43705.0,43704.0,0.08525159]
[1644248721174,0.00050858,43705.0,43704.0,0.38525159]
[1644248721376,0.00050858,43705.0,43704.0,0.81115067]
[1644248721576,0.001,43708.0,43705.0,0.19496578]
[1644248721825,0.001,43708.0,43707.0,0.08525159]
[1644248722121,0.00061853,43713.0,43708.0,0.8]
[1644248722322,0.00061853,43713.0,43712.0,0.08525159]
[1644248722518,0.02,43719.0,43712.0,0.40986459]
[1644248722718,0.02,43719.0,43718.0,0.63905343]
[1644248722919,0.02,43719.0,43718.0,0.57268435]
[1644248723518,0.02,43719.0,43718.0,0.28721618]
[1644248724121,0.003,43720.0,43718.0,0.38525159]
[1644248724323,0.001,43727.0,43721.0,0.8]
[1644248724522,0.001,43727.0,43722.0,0.045]
[1644248724924,0.001,43727.0,43722.0,0.345]
[1644248725119,0.001,43727.0,43722.0,0.38737395]
[1644248725321,0.001,43727.0,43722.0,0.68737395]
[1644248725570,0.001,43727.0,43722.0,0.42762554]
[1644248725771,0.001,43727.0,43725.0,0.04025159]
[1644248725970,0.001,43727.0,43725.0,0.08525159]
[1644248726374,0.001,43727.0,43725.0,0.13525159]
[1644248726672,0.001,43727.0,43725.0,0.38525159]
[1644248726871,0.001,43727.0,43725.0,0.08525159]
[1644248727173,0.00202783,43734.0,43725.0,0.08525159]
[1644248727174,0.02,43739.0,43726.0,0.8]
[1644248727375,0.02,43739.0,43738.0,0.08525159]
[1644248727772,0.02,43739.0,43738.0,0.63010925]
[1644248728175,0.02,43739.0,43738.0,0.58510925]
[1644248728375,0.02,43739.0,43738.0,0.51515143]
[1644248728576,0.02,43739.0,43738.0,0.47489984]
[1644248728879,0.02,43739.0,43738.0,0.27460747]
[1644248729531,0.02,43739.0,43735.0,0.04025159]
[1644248729732,0.005,43743.0,43737.0,0.32]
[1644248729932,0.005,43739.0,43735.0,1.12630714]
[1644248730137,0.2218034,43753.0,43738.0,0.04025159]
[1644248730138,0.005,43746.0,43738.0,0.04025159]
[1644248730332,0.2218034,43753.0,43743.0,0.17422256]
[1644248730534,0.2218034,43753.0,43743.0,0.34237395]
[1644248730535,0.005,43745.0,43743.0,0.34237395]
[1644248731334,0.01086884,43745.0,43743.0,0.34237395]
[1644248732034,0.62545065,43744.0,43743.0,0.34237395]
[1644248732234,0.67545065,43744.0,43743.0,0.34237395]
[1644248732434,0.77545065,43744.0,43743.0,0.34237395]
[1644248733068,0.77545065,43744.0,43743.0,0.04237395]
[1644248733669,0.77508504,43744.0,43743.0,0.04237395]
[1644248734670,0.51956373,43744.0,43743.0,0.04237395]
[1644248734874,0.51956373,43744.0,43732.0,0.00071937]
[1644248735073,0.51956373,43744.0,43716.0,0.5]
[1644248735074,0.005,43733.0,43716.0,0.5]
[1644248735275,0.00974841,43734.0,43732.0,0.00071883]
[1644248735472,0.01086884,43733.0,43716.0,0.5]
[1644248735671,0.005,43717.0,43716.0,0.5]
[1644248735874,0.005,43717.0,43716.0,0.4523256]
[1644248736073,0.005,43717.0,43716.0,0.56397989]
[1644248736271,0.005,43717.0,43716.0,0.23280135]
[1644248736472,0.005,43717.0,43709.0,1.326]
[1644248736824,0.0458,43723.0,43709.0,0.7778]
[1644248737020,0.0458,43723.0,43702.0,0.04025159]
[1644248737021,0.005,43710.0,43702.0,0.04025159]
[1644248737220,0.005,43713.0,43703.0,0.3]
[1644248737419,0.005,43707.0,43703.0,0.3]
[1644248737719,0.005,43707.0,43702.0,0.04025159]
[1644248737923,1.88473086,43715.0,43702.0,0.04025159]
[1644248738221,0.005,43713.0,43705.0,0.045]
[1644248738420,1.83053086,43715.0,43705.0,0.045]
[1644248738421,0.0958,43715.0,43705.0,0.045]
[1644248738620,0.0958,43715.0,43701.0,0.32]
[1644248738621,0.005,43706.0,43701.0,0.32]
[1644248738820,0.2,43715.0,43701.0,0.36025159]
[1644248738821,0.0458,43709.0,43701.0,0.36025159]
[1644248739620,0.0458,43709.0,43701.0,0.02]
[1644248739820,0.0458,43709.0,43701.0,0.36025159]
[1644248740021,0.0458,43709.0,43707.0,0.19490584]
[1644248740420,0.0458,43709.0,43703.0,0.00071971]
[1644248740675,0.0508,43709.0,43703.0,0.00071971]
[1644248740871,0.0508,43709.0,43704.0,0.07607161]
[1644248741073,0.0194267,43712.0,43708.0,0.04025159]
[1644248741281,0.0194267,43712.0,43711.0,0.08525159]
[1644248741473,0.0194267,43712.0,43711.0,0.66202005]
[1644248741672,0.0194267,43712.0,43711.0,0.08525159]
[1644248741873,0.0194267,43712.0,43707.0,0.045]
[1644248742172,0.0194267,43712.0,43704.0,0.3007197]
[1644248742173,0.02042772,43716.0,43711.0,0.08525159]
[1644248742375,0.02042772,43716.0,43715.0,0.045]
[1644248742572,0.02042772,43716.0,43715.0,0.34685266]
[1644248742772,0.02042772,43716.0,43715.0,0.43429671]
[1644248744174,0.02035714,43720.0,43715.0,0.43429671]
[1644248744425,0.02035714,43720.0,43713.0,0.00066838]
[1644248744626,0.02035714,43720.0,43712.0,0.045]
[1644248744827,0.02035714,43720.0,43710.0,0.05721846]
[1644248745027,0.02035714,43720.0,43714.0,0.00066837]
[1644248745227,0.005,43715.0,43714.0,0.00066837]
[1644248745826,1.25530499,43715.0,43714.0,0.00066837]
[1644248746030,1.005,43715.0,43703.0,0.08525159]
[1644248746328,1.0,43715.0,43712.0,0.00066839]
[1644248746530,1.005,43715.0,43712.0,0.00066839]
[1644248746930,0.995,43715.0,43712.0,0.00066839]
[1644248747230,0.23708998,43713.0,43707.0,0.23455114]
[1644248747430,0.23708998,43713.0,43711.0,0.00067132]
[1644248748469,0.23708998,43713.0,43702.0,0.04025159]
[1644248748672,0.23708998,43713.0,43702.0,0.03992292]
[1644248748871,0.23708998,43713.0,43705.0,0.23869062]
[1644248749071,0.23708998,43713.0,43704.0,0.08050274]
[1644248749273,0.02370259,43714.0,43712.0,0.03992292]
[1644248749471,0.01870259,43714.0,43712.0,0.03992292]
[1644248749671,0.01870259,43714.0,43708.0,0.045]
[1644248749873,0.01870259,43714.0,43709.0,0.03992292]
[1644248750072,0.01870259,43714.0,43709.0,0.30650732]
[1644248750272,0.01870259,43714.0,43711.0,0.07369884]
[1644248750473,0.01870259,43714.0,43712.0,0.03992292]
[1644248750673,0.99,43715.0,43711.0,0.045]
[1644248750875,0.99,43715.0,43703.0,0.03992292]
[1644248751075,0.99,43715.0,43708.0,0.00052143]
[1644248751279,0.99,43715.0,43709.0,0.03992292]
[1644248751475,0.99,43715.0,43708.0,0.04552143]
[1644248751476,0.19488491,43712.0,43708.0,0.04552143]
[1644248751674,0.99,43715.0,43708.0,0.04552143]
[1644248751927,0.99,43715.0,43708.0,0.12138693]
[1644248752126,0.99,43715.0,43708.0,0.1208655]
[1644248752127,1.0096597,43715.0,43708.0,0.1208655]
[1644248752328,1.0096597,43715.0,43708.0,0.12153794]
[1644248752530,1.0096597,43715.0,43714.0,0.08492292]
[1644248752726,0.7510597,43715.0,43714.0,0.095]
[1644248753327,0.7510597,43715.0,43714.0,0.419613]
[1644248753525,0.7510597,43715.0,43714.0,0.64103581]
[1644248753827,0.7510597,43715.0,43714.0,0.74103581]
[1644248754027,0.01919687,43717.0,43714.0,0.74103581]
[1644248754327,0.00060796,43723.0,43718.0,0.324613]
[1644248754526,2.43189794,43737.0,43722.0,0.40953592]
[1644248754724,2.36330544,43737.0,43729.0,0.045]
[1644248755127,0.4639347,43736.0,43729.0,0.045]
[1644248755568,0.005,43743.0,43729.0,0.045]
[1644248755770,0.001,43744.0,43729.0,0.669613]
[1644248755970,0.005,43742.0,43729.0,0.419613]
[1644248756170,0.00050498,43732.0,43729.0,0.095]
[1644248756373,0.00050498,43732.0,43728.0,0.05720346]
[1644248756772,0.00050498,43732.0,43726.0,0.045]
[1644248756973,0.005,43733.0,43726.0,0.10220281]
[1644248757172,0.005,43733.0,43723.0,0.16440692]
[1644248757471,0.005,43733.0,43723.0,0.36422102]
[1644248757472,1.0,43729.0,43723.0,0.36422102]
[1644248757672,1.0,43729.0,43723.0,0.11440692]
[1644248757873,1.0,43729.0,43723.0,0.16440692]
[1644248758071,1.0,43729.0,43723.0,0.18488222]
[1644248758573,0.00041419,43728.0,43725.0,0.045]
[1644248758772,0.00041419,43728.0,43723.0,0.13488222]
[1644248759420,1.05,43729.0,43722.0,0.05]
[1644248759421,0.82011778,43723.0,43722.0,0.05]
[1644248759619,0.82011778,43723.0,43720.0,0.31578769]
[1644248759826,0.82011778,43723.0,43720.0,0.10720624]
[1644248760421,0.82011778,43723.0,43718.0,0.02080147]
[1644248760422,0.05,43721.0,43718.0,0.02080147]
[1644248760820,0.43914347,43719.0,43718.0,0.02080147]
[1644248761022,0.35745039,43719.0,43718.0,0.02080147]
[1644248761222,0.61990731,43719.0,43718.0,0.02080147]
[1644248761819,0.05,43719.0,43718.0,0.02080147]
[1644248762019,1.23365011,43720.0,43718.0,0.02080147]
[1644248762220,1.28365011,43720.0,43718.0,0.02080147]
[1644248762418,1.28365011,43720.0,43714.0,0.01912083]
[1644248762620,1.05,43720.0,43714.0,0.01912083]
[1644248762821,1.0,43718.0,43714.0,0.01912083]
[1644248764277,1.0,43718.0,43710.0,0.01964831]
[1644248764474,1.0,43714.0,43710.0,0.01964831]
[1644248764677,0.9999,43714.0,43710.0,0.01964831]
[1644248764977,0.9999,43714.0,43711.0,0.03992292]
[1644248765176,0.9999,43714.0,43710.0,0.07686787]
[1644248765376,0.9999,43714.0,43710.0,0.12686787]
[1644248766378,0.9999,43714.0,43710.0,0.16679079]
[1644248766578,0.9999,43714.0,43709.0,0.2622315]
[1644248766579,0.83320921,43710.0,43709.0,0.2622315]
[1644248767221,0.83320921,43710.0,43709.0,0.05721457]
[1644248767421,0.83320921,43710.0,43706.0,0.13509622]
[1644248767422,0.82820921,43710.0,43706.0,0.13509622]
[1644248767722,0.08002163,43709.0,43706.0,0.13509622]
[1644248767921,0.82820921,43710.0,43706.0,0.13509622]
[1644248768120,0.82820921,43710.0,43706.0,0.34377704]
[1644248768522,0.82820921,43710.0,43706.0,0.13009622]
[1644248768723,0.82820921,43710.0,43706.0,0.23009622]
[1644248768922,0.86990378,43706.0,43705.0,0.05721857]
[1644248769123,0.34632827,43706.0,43705.0,0.05721857]
[1644248769524,0.34632827,43706.0,43705.0,0.56685246]
[1644248769923,0.34632827,43706.0,43705.0,0.71685246]
[1644248770422,0.34632827,43706.0,43704.0,0.11443602]
[1644248770423,0.28314754,43705.0,43704.0,0.32373757]
[1644248770871,0.28268348,43705.0,43704.0,0.34653757]
[1644248772174,0.65346243,43704.0,43703.0,0.05721036]
[1644248772372,0.65346243,43704.0,43702.0,0.00071227]
[1644248772873,0.65346243,43704.0,43702.0,0.17165823]
[1644248773372,0.65346243,43704.0,43703.0,0.057215]
[1644248773977,0.98709427,43714.0,43709.0,0.05]
[1644248774175,0.98709427,43714.0,43710.0,1.58186666]
[1644248774440,0.98709427,43714.0,43710.0,0.50585066]
[1644248774837,0.98709427,43714.0,43712.0,0.34090071]
[1644248775037,0.98709427,43714.0,43713.0,0.0421]
[1644248775836,0.63222783,43714.0,43713.0,0.0421]
[1644248776236,0.65686747,43718.0,43715.0,0.0571905]
[1644248776440,0.65686747,43718.0,43716.0,0.70437163]
[1644248776640,0.65686747,43718.0,43717.0,0.29482682]
[1644248776837,5.11e-06,43718.0,43717.0,0.76153982]
[1644248777037,5.11e-06,43718.0,43717.0,0.88308882]
[1644248777240,5.11e-06,43718.0,43717.0,0.98308882]
[1644248778569,5.11e-06,43718.0,43717.0,0.366713]
[1644248778769,5.11e-06,43718.0,43717.0,0.0421]
[1644248780975,5.11e-06,43718.0,43717.0,0.63225782]
[1644248781274,5.11e-06,43718.0,43717.0,0.516713]
[1644248781475,0.433287,43717.0,43716.0,0.11438885]
[1644248781673,0.433287,43717.0,43716.0,0.69122091]
[1644248781931,0.433287,43717.0,43716.0,0.79122091]
[1644248782132,0.433287,43717.0,43716.0,1.09122091]
[1644248782334,0.433287,43717.0,43716.0,0.79122091]
[1644248782929,0.433287,43717.0,43716.0,0.69122091]
[1644248783129,0.433287,43717.0,43716.0,1.05047898]
[1644248783328,0.433287,43717.0,43716.0,0.89770092]
[1644248783530,0.433287,43717.0,43716.0,0.58054285]
[1644248783932,0.31945715,43716.0,43715.0,0.164383]
[1644248784130,0.31945715,43716.0,43715.0,0.43126]
[1644248784330,0.31945715,43716.0,43715.0,0.47336]
[1644248784936,0.90000511,43720.0,43716.0,0.8]
[1644248785131,0.01826485,43726.0,43717.0,1.166162]
[1644248785331,0.00208701,43724.0,43718.0,0.471512]
[1644248785575,0.13410378,43723.0,43721.0,0.91433705]
[1644248785775,0.13410378,43723.0,43722.0,0.7650277]
[1644248785976,0.13280406,43723.0,43722.0,0.7650277]
[1644248786178,0.13280406,43723.0,43722.0,0.8650277]
[1644248786377,0.06371071,43738.0,43724.0,0.324062]
[1644248786577,0.00041747,43725.0,43724.0,0.324062]
[1644248786776,0.00041747,43725.0,43724.0,0.466162]
[1644248786977,1.06311669,43729.0,43724.0,0.466162]
[1644248787177,1.06311669,43729.0,43728.0,0.324062]
[1644248787377,1.06311669,43729.0,43728.0,0.366162]
[1644248787580,0.99541747,43729.0,43728.0,0.366162]
[1644248788280,0.99541747,43729.0,43728.0,0.68998759]
[1644248788679,1.08527767,43729.0,43728.0,0.423339]
[1644248789330,1.08527767,43729.0,43728.0,0.099277]
[1644248789925,0.99541747,43729.0,43728.0,0.099277]
[1644248790326,0.88541747,43729.0,43728.0,0.423339]
[1644248790526,0.88541747,43729.0,43728.0,0.69146197]
[1644248791430,0.88541747,43729.0,43728.0,0.74146197]
[1644248791625,0.88541747,43729.0,43727.0,0.30603213]
[1644248791825,0.88541747,43729.0,43727.0,0.6594171]
[1644248791826,0.25853803,43728.0,43727.0,0.6594171]
[1644248792026,0.25853803,43728.0,43727.0,0.7015171]
[1644248792226,0.25853803,43728.0,43727.0,0.423286]
[1644248793068,0.25853803,43728.0,43727.0,0.523286]
[1644248793268,0.25853803,43728.0,43727.0,0.623286]
[1644248793469,0.319533,43727.0,43726.0,0.17152876]
[1644248794671,0.319533,43727.0,43726.0,0.22870576]
[1644248794871,0.319533,43727.0,43726.0,0.27080576]
[1644248795275,0.319533,43727.0,43726.0,0.57394376]
[1644248795470,0.319533,43727.0,43726.0,0.78559822]
[1644248795871,0.319533,43727.0,43726.0,0.88559822]
[1644248796170,0.319533,43727.0,43726.0,0.83559822]
[1644248796372,0.319533,43727.0,43726.0,0.93559822]
[1644248797020,0.29716519,43727.0,43726.0,1.21304635]
[1644248797218,0.29716519,43727.0,43726.0,1.43913447]
[1644248797418,0.29716519,43727.0,43726.0,1.71304635]
[1644248797920,0.29875177,43727.0,43726.0,0.76304635]
[1644248798118,0.29875177,43727.0,43726.0,0.55139189]
[1644248798517,0.29875177,43727.0,43726.0,0.60856889]
[1644248799119,0.03399522,43728.0,43727.0,0.8]
[1644248799320,0.03399522,43728.0,43727.0,1.066039]
[1644248799721,0.03399522,43728.0,43727.0,1.23789158]
[1644248799922,0.03399522,43728.0,43727.0,0.966039]
[1644248800775,0.03399522,43728.0,43727.0,0.96534164]
[1644248800974,0.03399522,43728.0,43727.0,1.01534164]
[1644248801177,0.03399522,43728.0,43727.0,1.11534164]
[1644248801778,0.03399522,43728.0,43727.0,1.38101162]
[1644248802179,0.03399522,43728.0,43727.0,1.43101162]
[1644248802377,0.03399522,43728.0,43727.0,0.43101162]
[1644248802979,0.03361125,43728.0,43727.0,0.43232572]
[1644248803282,0.03361125,43728.0,43727.0,0.37442572]
[1644248803478,0.03361125,43728.0,43727.0,0.10875574]
[1644248803878,0.81902872,43729.0,43728.0,0.3]
[1644248804080,0.81902872,43729.0,43728.0,0.407439]
[1644248804522,0.81902872,43729.0,43728.0,0.67821953]
[1644248804922,0.81902872,43729.0,43728.0,0.407439]
[1644248805523,0.592561,43728.0,43727.0,0.05848966]
[1644248805925,0.592561,43728.0,43727.0,0.15058966]
[1644248806726,0.592561,43728.0,43727.0,0.0013141]
[1644248806926,0.592561,43728.0,43717.0,0.3]
[1644248806927,0.8,43727.0,43717.0,0.3]
[1644248807126,0.8,43727.0,43716.0,0.00072741]
[1644248807127,0.05,43719.0,43716.0,0.00072741]
[1644248807726,0.24131873,43719.0,43716.0,0.00072741]
[1644248807925,0.24131873,43719.0,43711.0,0.357205]
[1644248808179,0.24131873,43719.0,43716.0,0.00072738]
[1644248808180,0.75,43718.0,43716.0,0.00072738]
[1644248808486,0.374016,43717.0,43716.0,0.00072738]
[1644248809386,0.21648539,43710.0,43709.0,0.02166362]
[1644248809581,0.26648539,43710.0,43709.0,0.02166362]
[1644248809982,0.16648539,43710.0,43709.0,0.02166362]
[1644248810686,0.05,43710.0,43709.0,0.02166362]
[1644248812724,0.05,43710.0,43706.0,0.10721]
[1644248812924,0.05,43710.0,43707.0,0.00065355]
[1644248813125,0.04971046,43710.0,43707.0,0.00065355]
[1644248813425,0.04971046,43708.0,43707.0,0.00065355]
[1644248814027,0.04971046,43708.0,43706.0,0.05]
[1644248815978,0.04274736,43710.0,43708.0,0.057202]
[1644248816278,0.04274736,43710.0,43709.0,0.0458]
[1644248816476,0.09245782,43710.0,43709.0,0.0458]
[1644248816875,0.11410358,43711.0,43709.0,0.0458]
[1644248817077,0.11410358,43711.0,43709.0,0.103004]
[1644248817276,0.03516586,43711.0,43709.0,0.103004]
[1644248817476,0.02164576,43711.0,43710.0,0.3362927]
[1644248817677,0.02164576,43711.0,43710.0,0.3820927]
[1644248817976,0.02164576,43711.0,43710.0,0.72015385]
[1644248818176,0.02164576,43711.0,43710.0,0.4820927]
[1644248818578,0.02164576,43711.0,43710.0,0.0458]
[1644248818780,0.07135622,43711.0,43710.0,0.0458]
[1644248819334,0.04971046,43711.0,43710.0,0.0458]
[1644248820128,0.04274736,43712.0,43710.0,0.0458]
[1644248821430,0.04274736,43712.0,43709.0,0.057207]
[1644248821431,0.9542,43710.0,43709.0,0.057207]
[1644248821629,0.9542,43710.0,43709.0,0.05786177]
[1644248821829,0.9542,43710.0,43709.0,0.05815131]
[1644248822329,0.9542,43710.0,43709.0,0.05786177]
[1644248822529,0.9542,43710.0,43709.0,0.057207]
[1644248822931,0.9542,43710.0,43709.0,0.10329654]
[1644248823379,0.9542,43710.0,43709.0,0.15329654]
[1644248824180,0.9542,43710.0,43709.0,0.153007]
[1644248825381,1.00391046,43710.0,43709.0,0.15329654]
[1644248825982,1.00391046,43710.0,43709.0,0.153007]
[1644248826684,1.0685451,43710.0,43709.0,0.153007]
[1644248827122,0.9542,43710.0,43709.0,0.153007]
[1644248827522,0.93783623,43710.0,43709.0,0.153007]
[1644248828525,0.77298689,43710.0,43709.0,0.26740155]
[1644248828925,0.73259845,43709.0,43707.0,0.36920354]
[1644248829128,0.77298689,43710.0,43709.0,0.8]
[1644248829129,0.32769346,43710.0,43709.0,0.8]
[1644248829325,0.37044082,43710.0,43709.0,1.76602511]
[1644248829528,0.32769346,43710.0,43709.0,1.76602511]
[1644248829724,0.32769346,43710.0,43709.0,1.52149991]
[1644248830125,0.05,43724.0,43710.0,0.8]
[1644248830328,0.2462,43731.0,43710.0,0.8]
[1644248830329,0.0270807,43726.0,43720.0,0.114363]
[1644248830584,0.4868,43740.0,43719.0,0.8]
[1644248830585,0.05,43747.0,43726.0,0.8]
[1644248830783,0.05,43747.0,43739.0,0.572]
[1644248830986,0.05,43747.0,43743.0,0.572]
[1644248831283,0.05,43747.0,43743.0,0.7178]
[1644248832180,0.05,43747.0,43743.0,0.71533083]
[1644248832580,0.00041754,43746.0,43743.0,0.71533083]
[1644248832782,0.00041754,43746.0,43743.0,0.99399408]
[1644248833182,0.00041754,43746.0,43743.0,0.71533083]
[1644248833585,0.05,43747.0,43743.0,0.61533083]
[1644248833785,0.07313824,43748.0,43743.0,0.61533083]
[1644248833786,0.101,43744.0,43743.0,0.61533083]
[1644248834186,0.051,43744.0,43743.0,0.61533083]
[1644248834824,0.051,43744.0,43736.0,0.114342]
[1644248834825,0.8,43743.0,43736.0,0.114342]
[1644248835028,0.1,43737.0,43735.0,0.01819212]
[1644248835224,0.1,43737.0,43735.0,9.212e-05]
[1644248835225,0.324016,43736.0,43735.0,9.212e-05]
[1644248835424,0.15,43737.0,43732.0,0.00070504]
[1644248835623,0.28908262,43733.0,43732.0,0.00070504]
[1644248835825,0.41981739,43733.0,43732.0,0.00070504]
[1644248836027,0.41981739,43733.0,43722.0,0.3]
[1644248836225,0.05,43725.0,43722.0,0.3]
[1644248836426,0.05,43725.0,43723.0,0.5]
[1644248836626,0.05,43725.0,43710.0,0.32863158]
[1644248836929,0.2356969,43726.0,43714.0,0.8]
[1644248836930,0.05,43718.0,43714.0,0.8]
[1644248837128,0.20686034,43722.0,43714.0,0.557199]
[1644248837325,0.05,43720.0,43717.0,0.00065207]
[1644248837525,0.05,43720.0,43717.0,0.50065207]
[1644248837727,0.05,43720.0,43717.0,0.00065207]
[1644248838272,0.05,43720.0,43714.0,0.057199]
[1644248838472,0.05,43720.0,43716.0,0.00065208]
[1644248838772,1.0,43717.0,43716.0,0.00065208]
[1644248839575,1.0,43717.0,43716.0,0.23006096]
[1644248839774,1.0,43717.0,43716.0,0.05]
[1644248840172,1.0,43717.0,43714.0,0.11504959]
[1644248840373,1.0,43717.0,43714.0,0.3482317]
[1644248840374,1.0,43716.0,43714.0,0.3482317]
[1644248840573,1.0,43716.0,43714.0,0.16504959]
[1644248840775,1.0,43716.0,43714.0,0.34757959]
[1644248840976,1.0,43716.0,43714.0,0.16439748]
[1644248841277,1.0,43716.0,43714.0,0.34757959]
[1644248841474,1.0,43716.0,43714.0,0.16439748]
[1644248841673,1.0,43716.0,43714.0,0.44757959]
[1644248841937,0.9934,43716.0,43714.0,0.44757959]
[1644248842536,0.55242041,43714.0,43713.0,0.78602735]
[1644248842735,0.55242041,43714.0,43713.0,1.28602735]
[1644248842937,0.55242041,43714.0,43713.0,1.22883535]
[1644248843137,0.55242041,43714.0,43713.0,1.22817942]
[1644248844141,0.55242041,43714.0,43713.0,1.32027942]
[1644248844439,0.9934,43716.0,43714.0,0.37571125]
[1644248844641,0.9934,43716.0,43715.0,0.36005905]
[1644248844838,0.9934,43716.0,43715.0,1.01005905]
[1644248845040,0.99086276,43716.0,43715.0,1.01005905]
[1644248845440,1.0,43717.0,43715.0,1.01005905]
[1644248845678,1.0,43717.0,43716.0,0.47471204]
[1644248845878,0.656939,43717.0,43716.0,1.11681204]
[1644248846177,0.656939,43717.0,43716.0,1.96115145]
[1644248846379,0.656939,43717.0,43716.0,1.89360025]
[1644248846380,0.313881,43717.0,43716.0,1.89360025]
[1644248846578,0.303881,43717.0,43716.0,2.08767108]
[1644248846779,0.138881,43717.0,43716.0,1.89360025]
[1644248847980,0.138881,43717.0,43716.0,1.53324299]
[1644248849183,0.1,43728.0,43720.0,0.05718]
[1644248849428,1.05,43732.0,43721.0,0.0421]
[1644248849628,0.05,43731.0,43722.0,0.0421]
[1644248849833,0.1901623,43729.0,43723.0,0.0421]
[1644248850029,0.05,43727.0,43724.0,0.0421]
[1644248850231,0.057182,43724.0,43717.0,0.164354]
[1644248850426,0.057182,43724.0,43718.0,0.0421]
[1644248850627,0.057182,43724.0,43719.0,0.114355]